bitfinex/quotes_BTCUSD_20250101
["timestamp","ask_amount","ask_price","bid_price","bid_amount"]
[1735754134087,0.23923009,94304.0,94303.0,0.00021795]
[1735754134326,0.23923009,94304.0,94303.0,0.12720427]
[1735754134553,0.23923009,94304.0,94303.0,0.14250321]
[1735754134903,0.212051,94317.0,94306.0,0.00021795]
[1735754134904,0.2121453,94313.0,94306.0,0.00021795]
[1735754135108,0.2121453,94313.0,94308.0,0.023]
[1735754135290,0.2121453,94313.0,94310.0,0.023]
[1735754135495,0.2121453,94313.0,94312.0,0.023]
[1735754136408,0.2121453,94313.0,94312.0,0.1029]
[1735754136552,8.53e-05,94313.0,94312.0,0.20384837]
[1735754136766,8.53e-05,94313.0,94312.0,0.24995113]
[1735754136976,8.53e-05,94313.0,94312.0,0.21914587]
[1735754137190,8.53e-05,94313.0,94312.0,0.32335014]
[1735754140268,8.53e-05,94313.0,94312.0,0.42335014]
[1735754140468,8.53e-05,94313.0,94312.0,0.43235014]
[1735754141027,8.53e-05,94313.0,94312.0,0.43435014]
[1735754141232,8.53e-05,94313.0,94312.0,0.53019865]
[1735754141675,8.53e-05,94313.0,94312.0,0.51919865]
[1735754141881,0.0002,94329.0,94328.0,0.05376632]
[1735754142121,0.00034898,94329.0,94328.0,0.31225264]
[1735754142404,0.00034898,94329.0,94328.0,0.49997283]
[1735754143180,0.00034898,94329.0,94328.0,0.50197283]
[1735754145053,0.00034898,94329.0,94328.0,0.50297283]
[1735754145286,0.00034898,94329.0,94328.0,0.51197283]
[1735754148253,0.00034898,94329.0,94328.0,0.60897283]
[1735754148435,0.00034898,94329.0,94328.0,0.59997283]
[1735754148775,0.00034898,94329.0,94328.0,0.61297283]
[1735754149851,0.00043428,94329.0,94328.0,0.61297283]
[1735754150061,8.53e-05,94344.0,94342.0,0.18526632]
[1735754150268,8.53e-05,94344.0,94342.0,0.33593294]
[1735754150475,8.53e-05,94344.0,94342.0,0.35119016]
[1735754151473,8.53e-05,94344.0,94342.0,0.36019016]
[1735754152859,8.53e-05,94344.0,94342.0,0.36443816]
[1735754155351,8.53e-05,94344.0,94342.0,0.34075786]
[1735754158977,0.00019421,94343.0,94342.0,0.18603991]
[1735754159174,0.0017524,94343.0,94342.0,0.18179191]
[1735754159377,0.0017524,94343.0,94342.0,0.12824354]
[1735754159579,0.0017524,94343.0,94342.0,0.18179191]
[1735754159788,0.0017524,94343.0,94342.0,0.20479191]
[1735754160002,0.0017524,94343.0,94342.0,0.20279191]
[1735754160213,0.0017524,94343.0,94342.0,0.12724354]
[1735754160425,0.0017524,94343.0,94342.0,0.02325722]
[1735754160636,0.1306414,94343.0,94342.0,0.008]
[1735754161057,0.2556414,94343.0,94342.0,0.007]
[1735754161438,0.573988,94342.0,94339.0,0.00021795]
[1735754161682,0.361999,94340.0,94339.0,0.00021795]
[1735754161867,0.616872,94340.0,94337.0,0.023]
[1735754162019,0.362003,94338.0,94337.0,0.02321795]
[1735754163504,0.362003,94338.0,94337.0,0.02421795]
[1735754167418,0.211999,94340.0,94337.0,0.02421795]
[1735754167615,0.1500853,94343.0,94339.0,0.02321795]
[1735754167616,0.15,94341.0,94339.0,0.02321795]
[1735754167770,0.15,94341.0,94340.0,0.18053469]
[1735754167982,0.15,94341.0,94340.0,0.19578755]
[1735754168377,0.15,94341.0,94340.0,0.03825286]
[1735754168601,0.15,94341.0,94340.0,0.023]
[1735754168814,0.15,94341.0,94339.0,0.00021795]
[1735754169365,0.15,94341.0,94340.0,0.01525286]
[1735754169812,0.15,94341.0,94339.0,0.00021795]
[1735754169813,0.361999,94340.0,94339.0,0.00021795]
[1735754170234,0.361999,94340.0,94339.0,0.00221795]
[1735754170871,0.466938,94340.0,94339.0,0.00221795]
[1735754171119,0.361999,94340.0,94339.0,0.00221795]
[1735754171527,0.361999,94340.0,94339.0,0.00021795]
[1735754172321,0.361999,94340.0,94339.0,0.00221795]
[1735754173147,0.15,94340.0,94339.0,0.00221795]
[1735754174528,0.15,94340.0,94339.0,0.18275264]
[1735754174939,0.15,94340.0,94339.0,0.19800567]
[1735754179081,0.15,94340.0,94339.0,0.04025303]
[1735754179411,0.15,94340.0,94339.0,0.025]
[1735754180250,0.405449,94340.0,94339.0,0.025]
[1735754180411,0.361267,94340.0,94339.0,0.025]
[1735754180815,0.310659,94340.0,94339.0,0.025]
[1735754181018,0.15,94340.0,94339.0,0.025]
[1735754182964,0.364285,94340.0,94339.0,0.025]
[1735754183160,0.338012,94340.0,94339.0,0.025]
[1735754186603,0.338012,94340.0,94339.0,0.0251706]
[1735754188298,0.338012,94340.0,94339.0,0.0231706]
[1735754188505,0.338012,94340.0,94339.0,0.0001706]
[1735754189886,0.15,94340.0,94339.0,0.0001706]
[1735754190497,0.402903,94340.0,94339.0,0.0001706]
[1735754190691,0.407533,94340.0,94339.0,0.0001706]
[1735754200156,0.64676309,94340.0,94339.0,0.0001706]
[1735754200958,0.407533,94340.0,94339.0,0.0001706]
[1735754204277,0.34263368,94338.0,94337.0,2e-07]
[1735754204488,0.52202,94338.0,94337.0,2e-07]
[1735754206646,0.52302,94338.0,94337.0,2e-07]
[1735754207168,0.52402,94338.0,94337.0,2e-07]
[1735754207370,0.48390863,94314.0,94313.0,8e-07]
[1735754207709,0.48390863,94314.0,94313.0,0.00014978]
[1735754208322,0.920066,94314.0,94313.0,0.00014978]
[1735754208527,0.679213,94314.0,94313.0,0.00014978]
[1735754209148,0.91780641,94314.0,94313.0,0.00014978]
[1735754209335,0.91980641,94314.0,94313.0,0.00014978]
[1735754209558,0.92180641,94314.0,94313.0,0.00014978]
[1735754209958,0.683213,94314.0,94313.0,0.00014978]
[1735754210157,0.366057,94314.0,94313.0,0.00014978]
[1735754210367,1.579578,94314.0,94313.0,0.00014978]
[1735754210581,1.357809,94314.0,94313.0,0.00014978]
[1735754210778,1.355809,94314.0,94313.0,0.00014978]
[1735754210981,1.353809,94314.0,94313.0,0.00014978]
[1735754211228,1.333882,94314.0,94313.0,0.00014978]
[1735754212398,1.311801,94314.0,94313.0,0.00014978]
[1735754212749,1.310801,94314.0,94313.0,0.00014978]
[1735754212957,1.312801,94314.0,94313.0,0.00014978]
[1735754213156,1.310801,94314.0,94313.0,0.00014978]
[1735754213513,1.312801,94314.0,94313.0,0.00014978]
[1735754214134,1.226398,94314.0,94313.0,0.00014978]
[1735754216638,1.086895,94314.0,94313.0,0.00014978]
[1735754217020,0.975811,94314.0,94313.0,0.00014978]
[1735754220456,0.9758963,94314.0,94313.0,0.00014978]
[1735754220835,0.9638753,94314.0,94313.0,0.00014978]
[1735754221035,0.3661423,94314.0,94313.0,0.00014978]
[1735754221236,1.0473013,94314.0,94313.0,0.00014978]
[1735754221763,0.9703363,94314.0,94313.0,0.00014978]
[1735754221903,0.6592923,94314.0,94313.0,0.00014978]
[1735754223349,0.15,94313.0,94308.0,0.0385246]
[1735754223561,0.362068,94309.0,94308.0,0.0385246]
[1735754224451,0.683713,94309.0,94308.0,0.0385246]
[1735754226184,0.685713,94309.0,94308.0,0.0385246]
[1735754226408,0.687713,94309.0,94308.0,0.0385246]
[1735754227188,0.362084,94302.0,94301.0,0.023]
[1735754227383,0.664528,94302.0,94301.0,0.023]
[1735754227585,0.664528,94302.0,94301.0,0.03619502]
[1735754227789,0.664528,94302.0,94301.0,0.023]
[1735754228904,0.664528,94302.0,94301.0,0.024]
[1735754229107,0.665528,94302.0,94301.0,0.024]
[1735754229543,0.653385,94302.0,94301.0,0.024]
[1735754230211,0.653385,94302.0,94301.0,0.001]
[1735754231619,0.363084,94302.0,94301.0,0.001]
[1735754231919,0.806664,94302.0,94301.0,0.001]
[1735754232145,0.363084,94302.0,94301.0,0.001]
[1735754232347,0.80078,94302.0,94301.0,0.001]
[1735754233087,0.80078,94302.0,94301.0,0.0011706]
[1735754233536,0.66467,94302.0,94301.0,0.0011706]
[1735754234512,0.562527,94302.0,94301.0,0.0011706]
[1735754238238,0.561527,94302.0,94301.0,0.0011706]
[1735754238618,0.561527,94302.0,94301.0,0.0001706]
[1735754238619,0.564527,94302.0,94301.0,0.0001706]
[1735754238982,0.564527,94302.0,94301.0,0.0011706]
[1735754238983,0.563527,94302.0,94301.0,0.0011706]
[1735754239184,0.561527,94302.0,94301.0,0.0001706]
[1735754239382,0.564527,94302.0,94301.0,0.0001706]
[1735754239649,0.566527,94302.0,94301.0,0.0011706]
[1735754241513,0.563527,94302.0,94301.0,0.0011706]
[1735754241901,0.564527,94302.0,94301.0,0.0001706]
[1735754242095,0.61097863,94302.0,94301.0,0.0011706]
[1735754242279,0.60997863,94302.0,94301.0,0.0011706]
[1735754242625,0.61297863,94302.0,94301.0,0.0001706]
[1735754242829,0.61497863,94302.0,94301.0,0.0011706]
[1735754242980,0.61497863,94302.0,94301.0,0.0001706]
[1735754242981,0.60797863,94302.0,94301.0,0.0001706]
[1735754243387,0.61397863,94302.0,94301.0,0.0011706]
[1735754243790,0.79516495,94302.0,94301.0,0.0011706]
[1735754244197,0.79316495,94302.0,94301.0,0.0001706]
[1735754244678,0.78916495,94302.0,94301.0,0.0001706]
[1735754244877,0.79216495,94302.0,94301.0,0.0001706]
[1735754245630,0.79416495,94302.0,94301.0,0.0011706]
[1735754251303,0.470924,94302.0,94301.0,0.0011706]
[1735754251517,0.77475,94302.0,94301.0,0.0011706]
[1735754251913,1.27475,94302.0,94301.0,0.0011706]
[1735754252686,1.27175,94302.0,94301.0,0.0011706]
[1735754252917,1.26975,94302.0,94301.0,0.0001706]
[1735754253142,1.027272,94302.0,94301.0,0.0001706]
[1735754254067,1.029272,94302.0,94301.0,0.0001706]
[1735754255237,0.865084,94302.0,94301.0,0.0001706]
[1735754255377,1.605529,94302.0,94301.0,0.0001706]
[1735754255583,1.546967,94302.0,94301.0,0.0001706]
[1735754255789,1.497727,94302.0,94301.0,0.0001706]
[1735754256772,1.74678515,94302.0,94301.0,0.0001706]
[1735754256940,1.66537915,94302.0,94301.0,0.0001706]
[1735754258882,1.378539,94302.0,94301.0,0.0001706]
[1735754259976,1.12572893,94302.0,94301.0,0.0001706]
[1735754260707,1.33781293,94302.0,94301.0,0.0001706]
[1735754267344,0.82435793,94302.0,94301.0,0.0001706]
[1735754267546,1.54756993,94302.0,94301.0,0.0001706]
[1735754267837,1.53583493,94302.0,94301.0,0.0001706]
[1735754267974,1.53783493,94302.0,94301.0,0.0001706]
[1735754268516,1.53483493,94302.0,94301.0,0.0001706]
[1735754268726,1.53783493,94302.0,94301.0,0.0001706]
[1735754269125,1.53792023,94302.0,94301.0,0.0001706]
[1735754269324,1.53892023,94302.0,94301.0,0.0001706]
[1735754269480,1.49004823,94302.0,94301.0,0.0001706]
[1735754269907,1.48904823,94302.0,94301.0,0.0001706]
[1735754270312,1.49104823,94302.0,94301.0,0.0001706]
[1735754270777,1.48904823,94302.0,94301.0,0.0001706]
[1735754270967,1.49104823,94302.0,94301.0,0.0001706]
[1735754272214,1.44909523,94302.0,94301.0,0.0001706]
[1735754274486,1.44709523,94302.0,94301.0,0.0001706]
[1735754274716,1.44909523,94302.0,94301.0,0.0001706]
[1735754276159,1.44809523,94302.0,94301.0,0.0001706]
[1735754276693,1.45109523,94302.0,94301.0,0.0001706]
[1735754279184,0.7171693,94302.0,94301.0,0.07868855]
[1735754279404,0.7171693,94302.0,94301.0,0.12738855]
[1735754280183,0.7151693,94302.0,94301.0,0.12738855]
[1735754280321,0.7121693,94302.0,94301.0,0.12738855]
[1735754280688,0.7131693,94302.0,94301.0,0.12838855]
[1735754281201,0.7121693,94302.0,94301.0,0.12938855]
[1735754282857,0.2121693,94302.0,94301.0,0.12938855]
[1735754283087,0.2121693,94302.0,94301.0,0.12738855]
[1735754283218,0.2121693,94302.0,94301.0,0.14136325]
[1735754285489,0.2121693,94302.0,94301.0,0.14036325]
[1735754285661,0.2121693,94302.0,94301.0,0.14136325]
[1735754286569,0.45135585,94302.0,94301.0,0.14136325]
[1735754287279,0.2121693,94302.0,94301.0,0.14136325]
[1735754288457,0.2121693,94302.0,94301.0,0.14036325]
[1735754288860,0.2121693,94302.0,94301.0,0.14136325]
[1735754289109,0.2121693,94302.0,94301.0,0.16085441]
[1735754290159,0.2121693,94302.0,94301.0,0.16063646]
[1735754290529,0.2121693,94302.0,94301.0,0.16085441]
[1735754290923,0.2121693,94302.0,94301.0,0.14136325]
[1735754292429,0.2121693,94302.0,94301.0,0.12838855]
[1735754294599,8.53e-05,94302.0,94301.0,0.20493692]
[1735754295010,8.53e-05,94302.0,94301.0,0.21790498]
[1735754296393,8.53e-05,94302.0,94301.0,0.21768703]
[1735754296598,8.53e-05,94302.0,94301.0,0.21790498]
[1735754309041,8.53e-05,94302.0,94301.0,0.21690498]
[1735754309386,8.53e-05,94302.0,94301.0,0.21890498]
[1735754309870,8.53e-05,94302.0,94301.0,0.22090498]
[1735754311318,8.53e-05,94302.0,94301.0,0.21690498]
[1735754311510,8.53e-05,94302.0,94301.0,0.21990498]
[1735754315716,8.53e-05,94302.0,94301.0,0.21968703]
[1735754315922,8.53e-05,94302.0,94301.0,0.21990498]
[1735754316819,0.23927185,94302.0,94301.0,0.21990498]
[1735754318464,0.23927185,94302.0,94301.0,0.21968703]
[1735754318672,0.23927185,94302.0,94301.0,0.21990498]
[1735754320169,8.53e-05,94302.0,94301.0,0.21990498]
[1735754326031,0.28712533,94305.0,94302.0,0.023]
[1735754326457,0.28712533,94305.0,94303.0,0.012964]
[1735754326663,0.21208,94304.0,94303.0,0.012964]
[1735754328149,0.21208,94304.0,94303.0,0.014964]
[1735754330384,0.21208,94304.0,94303.0,0.002]
[1735754330996,0.21208,94304.0,94301.0,0.0001706]
[1735754331331,0.42416,94304.0,94301.0,0.0001706]
[1735754331729,0.42516,94304.0,94301.0,0.0001706]
[1735754331899,0.21308,94304.0,94301.0,0.0001706]
[1735754332084,0.212084,94302.0,94301.0,0.00038855]
[1735754333997,0.212084,94302.0,94301.0,0.00138855]
[1735754334338,0.212084,94302.0,94301.0,0.0011706]
[1735754334510,0.212084,94302.0,94301.0,0.00138855]
[1735754337379,0.212084,94302.0,94301.0,0.00038855]
[1735754337595,0.212084,94302.0,94301.0,0.00138855]
[1735754338383,0.212084,94302.0,94301.0,0.00238855]
[1735754340853,0.2121653,94304.0,94301.0,0.0021706]
[1735754341055,0.2121653,94304.0,94302.0,0.00021795]
[1735754342052,0.2131653,94304.0,94302.0,0.00021795]
[1735754342478,0.2121653,94304.0,94302.0,0.00121795]
[1735754344813,8.53e-05,94304.0,94303.0,0.15719369]
[1735754345022,8.53e-05,94304.0,94303.0,0.31494633]
[1735754345448,8.53e-05,94304.0,94303.0,0.32790903]
[1735754346265,8.53e-05,94304.0,94303.0,0.32011534]
[1735754347107,8.53e-05,94304.0,94303.0,0.32111534]
[1735754348587,8.53e-05,94304.0,94303.0,0.32011534]
[1735754348819,8.53e-05,94304.0,94303.0,0.32211534]
[1735754350280,8.53e-05,94304.0,94303.0,0.31709134]
[1735754353850,8.53e-05,94304.0,94303.0,0.0149627]
[1735754354899,8.53e-05,94304.0,94303.0,0.025]
[1735754356491,8.53e-05,94304.0,94303.0,0.02521795]
[1735754356780,8.53e-05,94304.0,94303.0,0.03817879]
[1735754356965,8.53e-05,94304.0,94303.0,0.11737879]
[1735754357170,8.53e-05,94304.0,94303.0,0.32281348]
[1735754361404,8.53e-05,94304.0,94303.0,0.32298408]
[1735754364798,8.53e-05,94304.0,94303.0,0.29998408]
[1735754365207,8.53e-05,94304.0,94303.0,0.32999955]
[1735754365405,8.53e-05,94304.0,94303.0,0.35299955]
[1735754365768,8.53e-05,94304.0,94303.0,0.32999955]
[1735754366286,8.53e-05,94304.0,94303.0,0.32298408]
[1735754368242,8.53e-05,94304.0,94303.0,0.24621776]
[1735754368447,0.00054911,94304.0,94303.0,0.29998408]
[1735754369011,0.00054911,94304.0,94303.0,0.32298408]
[1735754369557,8.53e-05,94304.0,94303.0,0.32298408]
[1735754370326,8.53e-05,94304.0,94303.0,0.35529955]
[1735754373286,8.53e-05,94304.0,94303.0,0.32298408]
[1735754374664,8.53e-05,94304.0,94303.0,0.26943571]
[1735754374894,8.53e-05,94304.0,94303.0,0.32298408]
[1735754375514,8.53e-05,94304.0,94303.0,0.19566613]
[1735754375904,8.53e-05,94304.0,94303.0,0.19588408]
[1735754378563,8.53e-05,94304.0,94303.0,0.22321955]
[1735754381797,8.53e-05,94304.0,94303.0,0.19588408]
[1735754386715,8.53e-05,94304.0,94303.0,0.32198408]
[1735754389434,0.07653595,94320.0,94304.0,0.023]
[1735754389640,5.788e-05,94313.0,94307.0,0.079]
[1735754389844,5.788e-05,94313.0,94308.0,0.12698632]
[1735754390085,5.788e-05,94313.0,94312.0,0.00021795]
[1735754390311,5.788e-05,94313.0,94312.0,0.12720427]
[1735754390683,5.788e-05,94313.0,94312.0,0.14016555]
[1735754392352,5.788e-05,94313.0,94312.0,0.14216555]
[1735754393073,5.788e-05,94313.0,94312.0,0.14816555]
[1735754393962,5.788e-05,94313.0,94312.0,0.04396128]
[1735754394734,0.00053267,94313.0,94312.0,0.04196128]
[1735754394942,0.00053267,94313.0,94312.0,0.029]
[1735754395137,0.00053267,94313.0,94312.0,0.03]
[1735754395590,0.00053267,94313.0,94312.0,0.029]
[1735754395904,0.00053267,94313.0,94312.0,0.023]
[1735754396205,0.00061797,94313.0,94312.0,0.023]
[1735754396588,0.00061797,94313.0,94312.0,0.027]
[1735754397034,0.00061797,94313.0,94312.0,0.023]
[1735754397232,0.00061797,94313.0,94312.0,0.02521795]
[1735754397604,0.00061797,94313.0,94312.0,0.025]
[1735754397881,0.00061797,94313.0,94312.0,0.02521795]
[1735754398253,0.00061797,94313.0,94312.0,0.025]
[1735754398472,0.00061797,94313.0,94312.0,0.02521795]
[1735754398893,0.00061797,94313.0,94312.0,0.025]
[1735754400050,0.00061797,94313.0,94312.0,0.023]
[1735754400360,0.00061797,94313.0,94312.0,0.026]
[1735754400575,0.00061797,94313.0,94312.0,0.02621795]
[1735754401027,0.00014318,94313.0,94312.0,0.31672927]
[1735754402169,0.00014318,94313.0,94312.0,0.30875264]
[1735754408341,0.00014318,94313.0,94312.0,0.30892324]
[1735754417405,0.00014318,94313.0,94312.0,0.32187152]
[1735754420620,0.14522848,94327.0,94326.0,0.00021795]
[1735754420827,0.14528112,94327.0,94326.0,0.00021795]
[1735754421881,0.14628112,94327.0,94326.0,0.00021795]
[1735754422656,0.00105264,94327.0,94326.0,0.00021795]
[1735754422989,0.21203,94326.0,94313.0,0.023]
[1735754423193,0.21203,94326.0,94315.0,0.023]
[1735754423518,0.21203,94326.0,94317.0,0.023]
[1735754423730,0.21203,94326.0,94319.0,0.023]
[1735754423885,0.212024,94329.0,94321.0,0.023]
[1735754424084,0.212024,94329.0,94323.0,0.023]
[1735754424286,0.212024,94329.0,94325.0,0.023]
[1735754424508,0.212024,94329.0,94326.0,0.001]
[1735754424713,0.212012,94334.0,94330.0,0.023]
[1735754424920,0.212012,94334.0,94332.0,0.023]
[1735754425503,0.212012,94334.0,94333.0,0.03594226]
[1735754425680,0.362918,94334.0,94333.0,0.03594226]
[1735754425896,0.212012,94334.0,94333.0,0.03594226]
[1735754426302,0.213012,94334.0,94333.0,0.03594226]
[1735754426723,0.212012,94334.0,94333.0,0.03594226]
[1735754427202,0.213012,94334.0,94333.0,0.03594226]
[1735754429898,0.208012,94334.0,94333.0,0.03594226]
[1735754430607,0.001,94334.0,94333.0,0.05528995]
[1735754431039,0.213012,94334.0,94333.0,0.03594226]
[1735754431252,0.211999,94340.0,94334.0,0.023]
[1735754431451,0.212008,94336.0,94334.0,0.023]
[1735754431780,0.212008,94336.0,94335.0,0.03594226]
[1735754432201,0.212008,94336.0,94335.0,0.03494226]
[1735754433046,0.213008,94336.0,94335.0,0.03494226]
[1735754433256,0.213008,94336.0,94335.0,0.023]
[1735754433440,0.001,94336.0,94335.0,0.023]
[1735754433803,0.001,94336.0,94335.0,0.03586821]
[1735754439896,0.268106,94336.0,94335.0,0.03586821]
[1735754440103,0.268106,94336.0,94335.0,0.023]
[1735754440450,0.151,94336.0,94335.0,0.023]
[1735754440993,0.278543,94336.0,94335.0,0.023]
[1735754442501,0.151,94336.0,94335.0,0.023]
[1735754442754,0.261346,94336.0,94335.0,0.023]
[1735754442983,0.261346,94336.0,94331.0,0.10398632]
[1735754443184,0.433405,94335.0,94321.0,0.05354837]
[1735754443546,0.21249841,94335.0,94334.0,0.0001706]
[1735754443667,0.58378841,94335.0,94334.0,0.0001706]
[1735754444283,0.66058841,94335.0,94334.0,0.0001706]
[1735754444490,0.66158841,94335.0,94334.0,0.0001706]
[1735754444691,0.70804004,94335.0,94334.0,6e-07]
[1735754444897,0.58575004,94335.0,94334.0,6e-07]
[1735754445254,0.58675004,94335.0,94334.0,6e-07]
[1735754445792,0.58575004,94335.0,94334.0,6e-07]
[1735754446883,0.68973636,94335.0,94334.0,6e-07]
[1735754447105,0.73793636,94335.0,94334.0,6e-07]
[1735754447531,0.74093636,94335.0,94334.0,6e-07]
[1735754449150,0.74899629,94335.0,94334.0,6e-07]
[1735754451461,0.74599629,94335.0,94334.0,6e-07]
[1735754451812,0.75099629,94335.0,94334.0,6e-07]
[1735754453286,0.362059,94313.0,94303.0,0.0001706]
[1735754453486,2.371394,94313.0,94312.0,0.00022324]
[1735754453705,2.4157353,94313.0,94312.0,0.00022324]
[1735754454127,2.3923193,94313.0,94312.0,0.00022324]
[1735754454479,2.3793193,94313.0,94312.0,0.00122324]
[1735754454887,2.3146983,94313.0,94312.0,0.00122324]
[1735754455050,2.3106983,94313.0,94312.0,0.00122324]
[1735754455267,2.3026983,94313.0,94312.0,0.00022324]
[1735754455515,2.3026983,94313.0,94312.0,0.00122324]
[1735754455516,2.2872533,94313.0,94312.0,0.00122324]
[1735754455715,2.2655413,94313.0,94312.0,0.00122324]
[1735754455918,2.23668593,94313.0,94312.0,0.00122324]
[1735754456694,2.22868593,94313.0,94312.0,0.00022324]
[1735754456968,2.22868593,94313.0,94312.0,0.00122324]
[1735754457176,2.1922343,94313.0,94312.0,0.00122324]
[1735754457573,1.307404,94313.0,94312.0,0.00122324]
[1735754457824,0.981095,94313.0,94312.0,0.00122324]
[1735754458635,0.902053,94313.0,94312.0,0.00122324]
[1735754459109,0.80754,94313.0,94312.0,0.00122324]
[1735754459302,0.372059,94313.0,94312.0,0.00122324]
[1735754459521,0.848224,94313.0,94312.0,0.00122324]
[1735754459661,0.836607,94313.0,94312.0,0.00122324]
[1735754460637,0.537694,94313.0,94312.0,0.00122324]
[1735754462147,0.53819057,94313.0,94312.0,0.00122324]
[1735754464343,0.52382957,94313.0,94312.0,0.00122324]
[1735754465525,0.53188981,94313.0,94312.0,0.00122324]
[1735754471703,0.38061581,94313.0,94312.0,0.00122324]
[1735754471904,1.22088081,94313.0,94312.0,0.00122324]
[1735754472134,0.38061581,94313.0,94312.0,0.00122324]
[1735754472329,1.23283181,94313.0,94312.0,0.00122324]
[1735754474876,1.22583181,94313.0,94312.0,0.00022324]
[1735754475474,1.22283181,94313.0,94312.0,0.00022324]
[1735754475924,1.22683181,94313.0,94312.0,0.00022324]
[1735754476688,1.23583181,94313.0,94312.0,0.00022324]
[1735754476886,0.86608581,94313.0,94312.0,0.00022324]
[1735754477450,0.82711181,94313.0,94312.0,0.00022324]
[1735754478937,0.82311181,94313.0,94312.0,0.00022324]
[1735754479291,0.50251057,94313.0,94312.0,0.00022324]
[1735754479682,0.48951057,94313.0,94312.0,0.07862324]
[1735754480130,0.48951057,94313.0,94312.0,0.07962324]
[1735754480131,0.50251057,94313.0,94312.0,0.07962324]
[1735754480336,0.50251057,94313.0,94312.0,0.07862324]
[1735754480749,0.50551057,94313.0,94312.0,0.07862324]
[1735754480977,0.49651057,94313.0,94312.0,0.07862324]
[1735754481381,0.49951057,94313.0,94312.0,0.07862324]
[1735754481581,0.49551057,94313.0,94312.0,0.07862324]
[1735754481759,0.49551057,94313.0,94312.0,0.00022324]
[1735754481959,0.49751057,94313.0,94312.0,0.00022324]
[1735754482378,0.49551057,94313.0,94312.0,0.00022324]
[1735754482970,0.49751057,94313.0,94312.0,0.00022324]
[1735754483428,0.50357085,94313.0,94312.0,0.00022324]
[1735754483725,0.49757085,94313.0,94312.0,0.00022324]
[1735754484393,0.50057085,94313.0,94312.0,0.00022324]
[1735754484918,1.37450385,94313.0,94312.0,0.00022324]
[1735754485113,1.75557085,94313.0,94312.0,0.00022324]
[1735754485296,1.75757085,94313.0,94312.0,0.00022324]
[1735754485509,1.65712185,94313.0,94312.0,0.00022324]
[1735754485729,1.51195985,94313.0,94312.0,0.00022324]
[1735754485931,1.35259185,94313.0,94312.0,0.00022324]
[1735754486363,1.35059185,94313.0,94312.0,0.00022324]
[1735754486792,1.34959185,94313.0,94312.0,0.00022324]
[1735754487067,1.35259185,94313.0,94312.0,0.00022324]
[1735754487729,1.35559185,94313.0,94312.0,0.00022324]
[1735754487973,1.43669185,94313.0,94312.0,0.00022324]
[1735754488179,1.35559185,94313.0,94312.0,0.00022324]
[1735754495236,1.40204348,94313.0,94312.0,2.4e-07]
[1735754495471,0.42506748,94313.0,94312.0,2.4e-07]
[1735754496723,0.41906748,94313.0,94312.0,2.4e-07]
[1735754497125,0.42206748,94313.0,94312.0,2.4e-07]
[1735754497534,0.42006748,94313.0,94312.0,2.4e-07]
[1735754497756,0.42306748,94313.0,94312.0,2.4e-07]
[1735754497973,0.42506748,94313.0,94312.0,2.4e-07]
[1735754498365,0.42306748,94313.0,94312.0,2.4e-07]
[1735754498606,0.52306748,94313.0,94312.0,2.4e-07]
[1735754498902,0.52506748,94313.0,94312.0,2.4e-07]
[1735754499335,0.8116035,94313.0,94312.0,2.4e-07]
[1735754500539,0.52506748,94313.0,94312.0,2.4e-07]
[1735754503452,0.362091,94299.0,94298.0,0.03650724]
[1735754503657,1.024592,94299.0,94298.0,0.03366463]
[1735754503854,0.960988,94299.0,94298.0,0.04518658]
[1735754504061,1.460988,94299.0,94298.0,0.03366463]
[1735754505291,1.460988,94299.0,94298.0,0.03466463]
[1735754505510,1.375548,94299.0,94298.0,0.03766463]
[1735754506539,1.375548,94299.0,94298.0,0.03366463]
[1735754506690,1.377548,94299.0,94298.0,0.03366463]
[1735754507261,1.3780553,94299.0,94298.0,0.03366463]
[1735754507647,1.3598833,94299.0,94298.0,0.03366463]
[1735754508080,0.8598833,94299.0,94298.0,0.03366463]
[1735754509210,0.86794358,94299.0,94298.0,8.8e-07]
[1735754509413,0.15,94287.0,94266.0,0.1251]
[1735754509587,0.362163,94267.0,94266.0,0.1251]
[1735754510777,0.362163,94267.0,94266.0,0.12559699]
[1735754510984,0.362163,94267.0,94266.0,0.13711894]
[1735754511180,0.362163,94267.0,94266.0,0.12559699]
[1735754511502,0.212159,94269.0,94266.0,0.12559699]
[1735754511806,0.001,94267.0,94266.0,0.12759699]
[1735754512023,0.213163,94267.0,94266.0,0.12759699]
[1735754512230,0.22122328,94267.0,94266.0,0.12759699]
[1735754512429,0.76771928,94267.0,94266.0,0.12959699]
[1735754512591,0.76671928,94267.0,94266.0,0.12759699]
[1735754512786,0.76671928,94267.0,94266.0,0.12859699]
[1735754513004,0.76671928,94267.0,94266.0,0.00349699]
[1735754513214,0.7672291,94267.0,94266.0,0.00249699]
[1735754513404,0.9172291,94267.0,94266.0,0.00249699]
[1735754513591,0.9182291,94267.0,94266.0,0.00349699]
[1735754514194,0.96468073,94267.0,94266.0,0.00149699]
[1735754514407,1.06866705,94267.0,94266.0,0.00149699]
[1735754514618,1.07066705,94267.0,94266.0,0.00149699]
[1735754514822,1.06966705,94267.0,94266.0,0.00049699]
[1735754515031,1.29736705,94267.0,94266.0,9.9e-07]
[1735754515242,0.75087105,94267.0,94266.0,9.9e-07]
[1735754515451,0.75287105,94267.0,94266.0,9.9e-07]
[1735754515906,0.75187105,94267.0,94266.0,9.9e-07]
[1735754516110,0.76036123,94267.0,94266.0,5.9e-07]
[1735754516264,0.48671942,94267.0,94266.0,5.9e-07]
[1735754516606,0.63317105,94267.0,94266.0,5.9e-07]
[1735754516807,0.64217105,94267.0,94266.0,5.9e-07]
[1735754517474,0.54217105,94267.0,94266.0,5.9e-07]
[1735754517811,0.63917105,94267.0,94266.0,5.9e-07]
[1735754518288,0.64317105,94267.0,94266.0,5.9e-07]
[1735754518620,0.63917105,94267.0,94266.0,5.9e-07]
[1735754518839,0.15,94246.0,94244.0,0.07023146]
[1735754519042,0.362212,94245.0,94244.0,0.07038047]
[1735754519217,0.668162,94245.0,94244.0,0.07038047]
[1735754519978,0.45595,94245.0,94244.0,0.07038047]
[1735754520504,0.631594,94245.0,94244.0,0.07038047]
[1735754520677,0.479874,94245.0,94244.0,0.07038047]
[1735754520867,0.362212,94245.0,94244.0,0.07038047]
[1735754525098,0.506399,94245.0,94244.0,0.07038047]
[1735754525443,0.463421,94245.0,94244.0,0.07038047]
[1735754525691,0.498425,94245.0,94244.0,0.07038047]
[1735754526309,0.630849,94245.0,94244.0,0.07038047]
[1735754527119,0.63136443,94245.0,94244.0,0.07038047]
[1735754527931,0.63942504,94245.0,94244.0,0.07038047]
[1735754528644,0.63942504,94245.0,94244.0,0.07055127]
[1735754529008,0.63951044,94245.0,94244.0,0.07055127]
[1735754530857,0.50644244,94245.0,94244.0,0.07055127]